fUSD/lending_fUSD_20251024
["ID","MTS","AMOUNT","RATE_DAILY","PERIOD"]
[392224068,1761267040738,-168.0,0.0003744,2]
[392224069,1761267040747,-295.0,0.00037546,2]
[392224070,1761267040757,-295.0,0.00037556,2]
[392224071,1761267040767,-177.58,0.00037575,2]
[392224072,1761267040777,-167.0,0.00038055,7]
[392224073,1761267040786,-299.26111843,0.00038055,7]
[392224074,1761267040796,-168.0,0.00038075,2]
[392224075,1761267040805,-1085.27949035,0.000381,2]
[392224076,1761267040815,-166.66,0.00038127,2]
[392224077,1761267040824,-280.20018451,0.00038154,2]
[392224078,1761267040839,-168.0,0.00038358,2]
[392224079,1761267040848,-168.0,0.00038476,2]
[392224080,1761267040858,-334.5472959,0.00038531,2]
[392224081,1761267040867,-215.0738,0.00038691,2]
[392224082,1761267040879,-280.20018451,0.00038951,2]
[392224083,1761267040889,-150.0,0.00039427,4]
[392224084,1761267040899,-150.0,0.00039427,4]
[392224085,1761267040910,-150.0,0.00039427,4]
[392224086,1761267040923,-150.0,0.00039427,4]
[392224087,1761267040934,-150.0,0.00039427,4]
[392224088,1761267040944,-150.0,0.00039427,4]
[392224089,1761267040956,-150.0,0.00039427,4]
[392224090,1761267040966,-205.05633629,0.00039427,4]
[392224091,1761267040976,-150.0,0.00039427,4]
[392224092,1761267040987,-276.5151677,0.00039427,4]
[392224093,1761267040996,-177.58,0.00039454,2]
[392224094,1761267041007,-1858.98952176,0.00039485,30]
[392224095,1761267041017,-368.23,0.00039665,120]
[392224096,1761267041026,-280.20018451,0.00039748,2]
[392224097,1761267041036,-346.92554585,0.000399,2]
[392224098,1761267041046,-747.8093786,0.00039901,2]
[392224099,1761267041055,-152.0,0.000402,120]
[392224100,1761267041064,-6255.82,0.0004029,2]
[392224101,1761267041086,-2905.86,0.0004029,30]
[392224102,1761267041096,-6397.8,0.0004029,2]
[392224103,1761267041106,-964.19,0.0004029,2]
[392224104,1761267041116,-999.99,0.0004029,2]
[392224105,1761267041126,-150.0,0.00040523,7]
[392224106,1761267041135,-2114.2418831,0.00040546,15]
[392224107,1761267041145,-280.20018451,0.00040546,15]
[392224108,1761267041154,-268.58,0.00040615,2]
[392224109,1761267041164,-2459.0,0.00040841,2]
[392224110,1761267041174,-3082.0,0.00040966,120]
[392224111,1761267041184,-2053.0,0.00040966,2]
[392224112,1761267041193,-572.0,0.00040966,2]
[392224113,1761267041203,-818.0,0.00040966,2]
[392224114,1761267041213,-3412.0,0.00040966,2]
[392224115,1761267041223,-1591.0,0.00040966,2]
[392224116,1761267041232,-1311.0,0.00040966,2]
[392224117,1761267041241,-605.0,0.00040966,2]
[392224118,1761267041250,-1184.0,0.00040966,2]
[392224119,1761267041261,-1280.716,0.00040966,2]
[392224120,1761267041271,-819.0,0.00040966,2]
[392224121,1761267041281,-6522.0,0.00040966,2]
[392224122,1761267041290,-3486.0,0.00040966,2]
[392224123,1761267041300,-2756.353,0.00040966,2]
[392224124,1761267041309,-557.0,0.00040966,2]
[392224125,1761267041319,-337.77,0.00041027,14]
[392224126,1761267041329,-151.0,0.00041096,120]
[392224127,1761267041338,-676.0,0.000411,2]
[392224128,1761267041348,-294.9,0.00041187,14]
[392224129,1761267041357,-500.0,0.00041189,120]
[392224130,1761267041367,-359.76179104,0.00041269,2]
[392224131,1761267041376,-177.58,0.00041333,2]
[392224132,1761267041387,-2803.0,0.00041338,7]
[392224133,1761267041396,-200.0,0.00041342,120]
[392224134,1761267041406,-2114.2418831,0.00041343,15]
[392224135,1761267041415,-280.20018451,0.00041343,15]
[392224136,1761267041425,-223.0315306,0.0004143,2]
[392224137,1761267041434,-150.0,0.00041618,30]
[392224138,1761267041444,-150.0,0.00041618,30]
[392224139,1761267041453,-200.0,0.0004175,2]
[392224140,1761267041463,-268.58,0.00042138,2]
[392224141,1761267041473,-2114.2418831,0.0004214,15]
[392224142,1761267041482,-280.20018451,0.0004214,15]
[392224143,1761267041491,-858.57053444,0.00042471,30]
[392224144,1761267041500,-373.07297731,0.00042638,2]
[392224145,1761267041510,-775.47832561,0.0004264,2]
[392224146,1761267041519,-475.46,0.00042658,30]
[392224147,1761267041529,-696.27,0.00042658,30]
[392224148,1761267041538,-696.27,0.00042658,30]
[392224149,1761267041548,-150.0,0.00042713,30]
[392224150,1761267041558,-1000.0,0.00042756,2]
[392224151,1761267041568,-2114.2418831,0.00042938,15]
[392224152,1761267041578,-280.20018451,0.00042938,15]
[392224153,1761267041588,-737.62344071,0.00043,120]
[392224154,1761267041598,-256.55193292,0.00043,120]
[392224155,1761267041608,-169.0,0.00043,90]
[392224156,1761267041618,-155.0,0.00043,90]
[392224157,1761267041633,-4343.22664192,0.0004312,120]
[392224158,1761267041645,-150.0,0.00043205,30]
[392224159,1761267041655,-176.3,0.00043205,30]
[392224160,1761267041665,-177.58,0.00043212,2]
[392224161,1761267041675,-150.0,0.00043315,30]
[392224162,1761267041685,-500.0,0.00043356,60]
[392224163,1761267041694,-500.0,0.00043356,60]
[392224164,1761267041704,-171.45,0.00043535,2]
[392224165,1761267041714,-1000.0,0.00043563,14]
[392224166,1761267041724,-1000.0,0.00043584,14]
[392224167,1761267041733,-1425.0,0.00043595,2]
[392224168,1761267041743,-567.90089547,0.000436,14]
[392224169,1761267041753,-1000.0,0.00043603,14]
[392224170,1761267041762,-1000.0,0.00043606,14]
[392224171,1761267041773,-1000.0,0.00043607,14]
[392224172,1761267041783,-1425.0,0.00043635,2]
[392224173,1761267041792,-1000.0,0.00043639,14]
[392224174,1761267041803,-1000.0,0.00043653,14]
[392224175,1761267041813,-1425.0,0.00043657,2]
[392224176,1761267041823,-268.58,0.00043661,2]
[392224177,1761267041833,-1425.0,0.00043661,2]
[392224178,1761267041843,-150.0,0.00043664,2]
[392224179,1761267041852,-242.85476594,0.00043664,2]
[392224180,1761267041863,-1000.0,0.00043667,14]
[392224181,1761267041873,-1000.0,0.00043683,14]
[392224182,1761267041882,-1425.0,0.00043687,2]
[392224183,1761267041895,-1425.0,0.00043694,2]
[392224184,1761267041905,-1000.0,0.00043698,14]
[392224185,1761267041915,-368.98333125,0.00043708,12]
[392224186,1761267041925,-1000.0,0.00043718,14]
[392224187,1761267041935,-1425.0,0.0004372,2]
[392224188,1761267041944,-177.28695595,0.00043726,20]
[392224189,1761267041955,-1000.0,0.00043727,14]
[392224190,1761267041966,-1425.0,0.00043732,2]
[392224191,1761267041977,-151.0,0.00043735,120]
[392224192,1761267041988,-151.0,0.00043735,120]
[392224193,1761267041997,-151.0,0.00043735,120]
[392224194,1761267042008,-2114.2418831,0.00043735,15]
[392224195,1761267042018,-280.20018451,0.00043735,15]
[392224196,1761267042027,-151.0,0.00043735,120]
[392224197,1761267042039,-205.49045471,0.00043735,2]
[392224198,1761267042050,-159.70222562,0.00043735,2]
[392224199,1761267042060,-65120.08673508,0.00043735,60]
[392224220,1761267042956,-2639.1287362,0.00043735,60]
[392224222,1761267042968,-388.16293222,0.00043735,60]
[392224225,1761267042985,-87407.6215965,0.00043735,60]
[392224227,1761267042994,-1000.0,0.0004375,14]
[392224229,1761267043003,-504.753692,0.00043781,120]
[392224231,1761267043013,-2036.602427,0.00043781,120]
[392224233,1761267043022,-503.795835,0.00043781,120]
[392224235,1761267043032,-500.0,0.00043781,120]
[392224237,1761267043042,-200.0,0.00043781,120]
[392224239,1761267043051,-1000.0,0.00043784,14]
[392224241,1761267043064,-1000.0,0.00043787,14]
[392224242,1761267043074,-1000.0,0.0004379,14]
[392224243,1761267043083,-1425.0,0.00043791,2]
[392224244,1761267043093,-1425.0,0.00043792,2]
[392224245,1761267043102,-878.34,0.000438,14]
[392224246,1761267043111,-818.71,0.000438,30]
[392224247,1761267043121,-1000.0,0.00043802,14]
[392224248,1761267043131,-158.32863532,0.00043805,2]
[392224249,1761267043141,-153.42443652,0.00043805,2]
[392224250,1761267043150,-9970.5139542,0.00043805,3]
[392224252,1761267043159,-150.0,0.00043808,30]
[392224254,1761267043168,-150.0,0.00043808,30]
[392224256,1761267043178,-150.0,0.00043808,30]
[392224257,1761267043188,-1425.0,0.00043809,2]
[392224258,1761267043197,-1425.0,0.00043813,2]
[392224259,1761267043207,-9970.5139542,0.00043814,3]
[392224260,1761267043216,-151.0,0.00043815,120]
[392224261,1761267043227,-151.0,0.00043815,120]
[392224262,1761267043236,-79764.1116336,0.00043815,3]
[392224263,1761267043246,-710.52,0.00043824,30]
[392224264,1761267043257,-151.0,0.00043825,120]
[392224265,1761267043267,-151.0,0.00043825,120]
[392224266,1761267043277,-229321.820947,0.00043825,3]
[392224267,1761267043286,-686.55,0.00043826,30]
[392224268,1761267043295,-1000.0,0.0004383,14]
[392224269,1761267043305,-666.0,0.00043834,30]
[392224270,1761267043315,-406.24349975,0.00043835,2]
[392224271,1761267043324,-500.0,0.00043835,120]
[392224272,1761267043334,-500.0,0.00043835,120]
[392224273,1761267043345,-500.0,0.00043835,120]
[392224274,1761267043354,-500.0,0.00043835,120]
[392224275,1761267043364,-500.0,0.00043835,120]
[392224276,1761267043373,-500.0,0.00043835,120]
[392224277,1761267043383,-500.0,0.00043835,120]
[392224278,1761267043393,-500.0,0.00043835,120]
[392224279,1761267043403,-228.48607764,0.00043835,120]
[392224280,1761267043413,-500.0,0.00043835,120]
[392224281,1761267043422,-500.0,0.00043835,120]
[392224282,1761267043433,-500.0,0.00043835,120]
[392224283,1761267043444,-500.0,0.00043835,120]
[392224284,1761267043454,-500.0,0.00043835,120]
[392224285,1761267043463,-500.0,0.00043835,120]
[392224286,1761267043472,-500.0,0.00043835,120]
[392224287,1761267043482,-500.0,0.00043835,120]
[392224288,1761267043491,-500.0,0.00043835,120]
[392224289,1761267043500,-500.0,0.00043835,120]
[392224290,1761267043511,-500.0,0.00043835,120]
[392224291,1761267043520,-262.52951766,0.00043835,120]
[392224292,1761267043530,-500.0,0.00043835,120]
[392224293,1761267043539,-500.0,0.00043835,120]
[392224294,1761267043548,-501.04117251,0.00043835,120]
[392224295,1761267043558,-500.0,0.00043835,120]
[392224296,1761267043567,-212.04879848,0.00043835,120]
[392224297,1761267043577,-500.0,0.00043835,120]
[392224298,1761267043586,-500.0,0.00043835,120]
[392224299,1761267043595,-502.07558678,0.00043835,120]
[392224300,1761267043606,-500.0,0.00043835,120]
[392224301,1761267043616,-500.0,0.00043835,120]
[392224302,1761267043627,-319.83396011,0.00043835,120]
[392224303,1761267043637,-500.0,0.00043835,120]
[392224304,1761267043647,-500.0,0.00043835,120]
[392224305,1761267043656,-500.0,0.00043835,120]
[392224306,1761267043666,-500.0,0.00043835,120]
[392224307,1761267043675,-500.0,0.00043835,120]
[392224308,1761267043685,-500.0,0.00043835,120]
[392224309,1761267043695,-508.55363272,0.00043835,120]
[392224310,1761267043705,-500.0,0.00043835,120]
[392224311,1761267043714,-500.0,0.00043835,120]
[392224312,1761267043723,-500.0,0.00043835,120]
[392224313,1761267043732,-500.0,0.00043835,120]
[392224314,1761267043742,-500.0,0.00043835,120]
[392224315,1761267043751,-500.0,0.00043835,120]
[392224316,1761267043760,-500.0,0.00043835,120]
[392224317,1761267043770,-500.0,0.00043835,120]
[392224318,1761267043779,-500.0,0.00043835,120]
[392224319,1761267043788,-640.63169138,0.00043835,120]
[392224320,1761267043797,-500.0,0.00043835,120]
[392224321,1761267043806,-500.0,0.00043835,120]
[392224322,1761267043816,-500.0,0.00043835,120]
[392224323,1761267043825,-500.0,0.00043835,120]
[392224324,1761267043835,-500.0,0.00043835,120]
[392224325,1761267043845,-378.43836388,0.00043835,120]
[392224326,1761267043854,-500.0,0.00043835,120]
[392224327,1761267043863,-500.0,0.00043835,120]
[392224328,1761267043873,-292.81287256,0.00043835,120]
[392224329,1761267043883,-500.0,0.00043835,120]
[392224330,1761267043894,-500.0,0.00043835,120]
[392224331,1761267043903,-500.0,0.00043835,120]
[392224332,1761267043912,-500.0,0.00043835,120]
[392224333,1761267043922,-212.58830245,0.00043835,120]
[392224334,1761267043931,-500.67887517,0.00043835,60]
[392224335,1761267043941,-500.0,0.00043835,120]
[392224336,1761267043950,-500.0,0.00043835,120]
[392224337,1761267043960,-500.0,0.00043835,120]
[392224338,1761267043970,-500.0,0.00043835,120]
[392224339,1761267043979,-500.0,0.00043835,120]
[392224340,1761267043989,-500.0,0.00043835,120]
[392224341,1761267043999,-500.0,0.00043835,120]
[392224342,1761267044008,-500.0,0.00043835,120]
[392224343,1761267044019,-500.0,0.00043835,120]
[392224344,1761267044029,-500.0,0.00043835,120]
[392224345,1761267044038,-500.0,0.00043835,120]
[392224346,1761267044048,-500.0,0.00043835,120]
[392224347,1761267044057,-500.0,0.00043835,120]
[392224348,1761267044067,-500.0,0.00043835,120]
[392224349,1761267044076,-502.0,0.00043835,120]
[392224350,1761267044086,-498.0,0.00043835,120]
[392224351,1761267044095,-500.0,0.00043835,120]
[392224352,1761267044105,-500.0,0.00043835,120]
[392224353,1761267044116,-500.0,0.00043835,120]
[392224354,1761267044125,-582.62915376,0.00043835,120]
[392224355,1761267044135,-500.0,0.00043835,120]
[392224356,1761267044144,-500.0,0.00043835,120]
[392224357,1761267044153,-500.0,0.00043835,120]
[392224358,1761267044163,-500.0,0.00043835,120]
[392224359,1761267044172,-500.0,0.00043835,120]
[392224360,1761267044181,-500.0,0.00043835,120]
[392224361,1761267044190,-500.0,0.00043835,120]
[392224362,1761267044201,-500.0,0.00043835,120]
[392224363,1761267044212,-500.0,0.00043835,120]
[392224364,1761267044223,-173.4026557,0.00043835,120]
[392224365,1761267044232,-500.0,0.00043835,120]
[392224366,1761267044242,-500.0,0.00043835,120]
[392224367,1761267044252,-500.0,0.00043835,120]
[392224368,1761267044261,-500.0,0.00043835,120]
[392224369,1761267044270,-500.0,0.00043835,120]
[392224370,1761267044279,-500.0,0.00043835,120]
[392224371,1761267044289,-500.0,0.00043835,120]
[392224372,1761267044298,-540.0,0.00043835,120]
[392224373,1761267044308,-500.0,0.00043835,120]
[392224374,1761267044317,-500.0,0.00043835,120]
[392224375,1761267044327,-500.0,0.00043835,120]
[392224376,1761267044336,-500.0,0.00043835,120]
[392224377,1761267044345,-515.35604908,0.00043835,120]
[392224378,1761267044354,-500.0,0.00043835,120]
[392224379,1761267044364,-500.0,0.00043835,120]
[392224380,1761267044375,-500.0,0.00043835,120]
[392224381,1761267044386,-500.0,0.00043835,120]
[392224382,1761267044395,-500.0,0.00043835,120]
[392224383,1761267044404,-500.0,0.00043835,120]
[392224384,1761267044415,-500.0,0.00043835,120]
[392224385,1761267044426,-500.0,0.00043835,120]
[392224386,1761267044435,-500.0,0.00043835,120]
[392224387,1761267044445,-500.0,0.00043835,120]
[392224388,1761267044454,-244.86849625,0.00043835,120]
[392224389,1761267044463,-500.0,0.00043835,120]
[392224390,1761267044472,-500.0,0.00043835,120]
[392224391,1761267044878,-500.0,0.00043835,120]
[392224392,1761267044889,-500.0,0.00043835,120]
[392224393,1761267044900,-500.0,0.00043835,120]
[392224394,1761267044911,-600.0,0.00043835,120]
[392224395,1761267044923,-500.0,0.00043835,120]
[392224396,1761267044933,-500.0,0.00043835,120]
[392224397,1761267044943,-500.0,0.00043835,120]
[392224398,1761267044956,-500.0,0.00043835,120]
[392224399,1761267044966,-500.0,0.00043835,120]
[392224400,1761267044977,-500.0,0.00043835,120]
[392224401,1761267044988,-500.0,0.00043835,120]
[392224402,1761267044998,-453.7241534,0.00043835,120]
[392224403,1761267045008,-500.0,0.00043835,120]
[392224404,1761267045018,-647.32583608,0.00043835,120]
[392224405,1761267045028,-500.0,0.00043835,120]
[392224406,1761267045038,-500.0,0.00043835,120]
[392224407,1761267045047,-500.0,0.00043835,120]
[392224408,1761267045057,-500.0,0.00043835,120]
[392224409,1761267045066,-500.0,0.00043835,120]
[392224410,1761267045076,-500.0,0.00043835,120]
[392224411,1761267045085,-639.42710753,0.00043835,120]
[392224412,1761267045094,-500.0,0.00043835,120]
[392224413,1761267045105,-500.0,0.00043835,120]
[392224414,1761267045115,-500.0,0.00043835,120]
[392224415,1761267045126,-500.0,0.00043835,120]
[392224416,1761267045135,-270.58265271,0.00043835,120]
[392224417,1761267045146,-500.0,0.00043835,120]
[392224418,1761267045156,-500.0,0.00043835,120]
[392224419,1761267045166,-500.0,0.00043835,120]
[392224420,1761267045175,-500.0,0.00043835,120]
[392224421,1761267045184,-500.0,0.00043835,120]
[392224422,1761267045193,-500.0,0.00043835,120]
[392224423,1761267045203,-518.15301362,0.00043835,120]
[392224424,1761267045212,-500.0,0.00043835,120]
[392224425,1761267045221,-500.0,0.00043835,120]
[392224426,1761267045231,-500.0,0.00043835,120]
[392224427,1761267045240,-500.0,0.00043835,120]
[392224428,1761267045249,-500.0,0.00043835,120]
[392224429,1761267045258,-500.0,0.00043835,120]
[392224430,1761267045268,-500.0,0.00043835,120]
[392224431,1761267045277,-501.16109162,0.00043835,120]
[392224432,1761267045287,-500.0,0.00043835,120]
[392224433,1761267045296,-500.0,0.00043835,120]
[392224434,1761267045306,-500.83144687,0.00043835,120]
[392224435,1761267045319,-500.0,0.00043835,120]
[392224436,1761267045329,-500.0,0.00043835,120]
[392224437,1761267045338,-500.0,0.00043835,120]
[392224438,1761267045347,-500.0,0.00043835,120]
[392224439,1761267045357,-500.0,0.00043835,120]
[392224441,1761267045366,-500.0,0.00043835,120]
[392224442,1761267045375,-500.0,0.00043835,120]
[392224443,1761267045385,-500.0,0.00043835,120]
[392224444,1761267045395,-500.0,0.00043835,120]
[392224445,1761267045405,-390.1857706,0.00043835,120]
[392224446,1761267045415,-500.0,0.00043835,120]
[392224447,1761267045426,-500.0,0.00043835,120]
[392224448,1761267045439,-500.0,0.00043835,120]
[392224449,1761267045449,-500.0,0.00043835,120]
[392224450,1761267045459,-500.0,0.00043835,120]
[392224451,1761267045469,-210.97041994,0.00043835,120]
[392224452,1761267045478,-500.0,0.00043835,120]
[392224453,1761267045488,-500.0,0.00043835,120]
[392224454,1761267045498,-500.0,0.00043835,120]
[392224455,1761267045507,-500.0,0.00043835,120]
[392224456,1761267045517,-500.0,0.00043835,120]
[392224457,1761267045526,-500.0,0.00043835,120]
[392224458,1761267045535,-500.0,0.00043835,120]
[392224459,1761267045545,-500.0,0.00043835,120]
[392224460,1761267045554,-500.0,0.00043835,120]
[392224461,1761267045564,-500.0,0.00043835,120]
[392224462,1761267045574,-500.0,0.00043835,120]
[392224463,1761267045583,-500.0,0.00043835,120]
[392224464,1761267045593,-500.0,0.00043835,120]
[392224465,1761267045602,-500.0,0.00043835,120]
[392224466,1761267045611,-500.0,0.00043835,120]
[392224467,1761267045621,-500.0,0.00043835,120]
[392224468,1761267045631,-500.0,0.00043835,120]
[392224469,1761267045640,-370.15916441,0.00043835,120]
[392224470,1761267045650,-500.0,0.00043835,120]
[392224471,1761267045659,-500.0,0.00043835,120]
[392224472,1761267045668,-500.0,0.00043835,120]
[392224473,1761267045678,-500.0,0.00043835,120]
[392224474,1761267045687,-500.0,0.00043835,120]
[392224475,1761267045697,-500.0,0.00043835,120]
[392224476,1761267045707,-500.0,0.00043835,120]
[392224477,1761267045716,-500.0,0.00043835,120]
[392224478,1761267045725,-500.0,0.00043835,120]
[392224479,1761267045735,-200.0,0.00043835,120]
[392224480,1761267045745,-500.0,0.00043835,120]
[392224481,1761267045755,-500.0,0.00043835,120]
[392224482,1761267045765,-500.0,0.00043835,120]
[392224483,1761267045775,-500.0,0.00043835,120]
[392224484,1761267045785,-500.0,0.00043835,120]
[392224485,1761267045794,-500.0,0.00043835,120]
[392224486,1761267045803,-500.0,0.00043835,120]
[392224487,1761267045814,-500.0,0.00043835,120]
[392224488,1761267045824,-500.0,0.00043835,120]
[392224489,1761267045836,-500.0,0.00043835,120]
[392224490,1761267045848,-500.0,0.00043835,120]
[392224491,1761267045867,-500.0,0.00043835,120]
[392224492,1761267045877,-500.0,0.00043835,120]
[392224493,1761267045886,-500.0,0.00043835,120]
[392224494,1761267045896,-500.0,0.00043835,120]
[392224495,1761267045905,-500.0,0.00043835,120]
[392224496,1761267045915,-500.0,0.00043835,120]
[392224497,1761267045925,-516.72678201,0.00043835,120]
[392224498,1761267045935,-500.0,0.00043835,120]
[392224499,1761267045946,-352.0,0.00043835,120]
[392224500,1761267045956,-500.0,0.00043835,120]
[392224501,1761267045965,-500.0,0.00043835,120]
[392224502,1761267045975,-500.0,0.00043835,120]
[392224503,1761267045984,-500.0,0.00043835,120]
[392224504,1761267045994,-500.0,0.00043835,120]
[392224505,1761267046004,-500.0,0.00043835,120]
[392224506,1761267046014,-500.0,0.00043835,120]
[392224507,1761267046023,-340.0,0.00043835,120]
[392224508,1761267046032,-500.0,0.00043835,120]
[392224509,1761267046042,-500.0,0.00043835,120]
[392224510,1761267046051,-500.0,0.00043835,120]
[392224511,1761267046062,-500.0,0.00043835,120]
[392224512,1761267046073,-500.0,0.00043835,120]
[392224513,1761267046082,-500.0,0.00043835,120]
[392224514,1761267046092,-500.0,0.00043835,120]
[392224516,1761267046102,-584.16855877,0.00043835,120]
[392224518,1761267046111,-500.0,0.00043835,120]
[392224519,1761267046121,-500.0,0.00043835,120]
[392224521,1761267046131,-500.0,0.00043835,120]
[392224523,1761267046141,-500.0,0.00043835,120]
[392224526,1761267046151,-607.78927354,0.00043835,120]
[392224528,1761267046160,-500.0,0.00043835,120]
[392224530,1761267046170,-500.0,0.00043835,120]
[392224532,1761267046180,-500.0,0.00043835,120]
[392224534,1761267046189,-500.0,0.00043835,120]
[392224536,1761267046198,-500.0,0.00043835,120]
[392224538,1761267046207,-500.0,0.00043835,120]
[392224540,1761267046217,-291.12944512,0.00043835,120]
[392224542,1761267046226,-500.0,0.00043835,120]
[392224544,1761267046235,-500.0,0.00043835,120]
[392224546,1761267046244,-500.0,0.00043835,120]
[392224548,1761267046255,-186.62104994,0.00043835,120]
[392224549,1761267046264,-500.0,0.00043835,120]
[392224551,1761267046275,-500.0,0.00043835,120]
[392224554,1761267046285,-500.0,0.00043835,120]
[392224555,1761267046295,-500.0,0.00043835,120]
[392224557,1761267046305,-500.0,0.00043835,120]
[392224559,1761267046315,-500.0,0.00043835,120]
[392224562,1761267046326,-500.0,0.00043835,120]
[392224564,1761267046337,-500.0,0.00043835,120]
[392224566,1761267046347,-500.0,0.00043835,120]
[392224567,1761267046356,-500.0,0.00043835,120]
[392224569,1761267046365,-500.0,0.00043835,120]
[392224570,1761267046375,-500.0,0.00043835,120]
[392224571,1761267046385,-500.0,0.00043835,120]
[392224572,1761267046395,-500.0,0.00043835,120]
[392224573,1761267046405,-584.28306837,0.00043835,120]
[392224574,1761267046415,-500.0,0.00043835,120]
[392224575,1761267046426,-500.0,0.00043835,120]
[392224576,1761267046437,-500.0,0.00043835,120]
[392224577,1761267046450,-500.0,0.00043835,120]
[392224578,1761267046460,-500.0,0.00043835,120]
[392224579,1761267046471,-500.0,0.00043835,120]
[392224580,1761267046480,-500.0,0.00043835,120]
[392224581,1761267046490,-500.0,0.00043835,120]
[392224582,1761267046500,-500.0,0.00043835,120]
[392224583,1761267046509,-500.0,0.00043835,120]
[392224584,1761267046518,-500.0,0.00043835,120]
[392224585,1761267046529,-500.0,0.00043835,120]
[392224586,1761267046538,-500.0,0.00043835,120]
[392224587,1761267046547,-500.0,0.00043835,120]
[392224588,1761267046557,-500.0,0.00043835,120]
[392224589,1761267046568,-500.0,0.00043835,120]
[392224590,1761267046578,-500.0,0.00043835,120]
[392224591,1761267046588,-500.0,0.00043835,120]
[392224592,1761267046598,-500.0,0.00043835,120]
[392224593,1761267046608,-500.0,0.00043835,120]
[392224594,1761267046617,-500.0,0.00043835,120]
[392224595,1761267046627,-500.0,0.00043835,120]
[392224596,1761267046637,-500.0,0.00043835,120]
[392224597,1761267046648,-500.0,0.00043835,120]
[392224598,1761267046658,-500.0,0.00043835,120]
[392224599,1761267046666,-500.0,0.00043835,120]
[392224600,1761267046676,-500.0,0.00043835,120]
[392224601,1761267046685,-208.88281839,0.00043835,120]
[392224602,1761267046695,-500.0,0.00043835,120]
[392224603,1761267046704,-500.0,0.00043835,120]
[392224604,1761267046714,-500.0,0.00043835,120]
[392224605,1761267046723,-500.0,0.00043835,120]
[392224606,1761267046733,-500.0,0.00043835,120]
[392224607,1761267046742,-500.0,0.00043835,120]
[392224608,1761267046751,-500.0,0.00043835,120]
[392224609,1761267046761,-500.0,0.00043835,120]
[392224610,1761267046771,-500.0,0.00043835,120]
[392224611,1761267046780,-500.0,0.00043835,120]
[392224612,1761267046790,-500.0,0.00043835,120]
[392224613,1761267046799,-500.0,0.00043835,120]
[392224614,1761267046808,-500.0,0.00043835,120]
[392224615,1761267046818,-500.0,0.00043835,120]
[392224616,1761267046827,-500.0,0.00043835,120]
[392224617,1761267046836,-500.0,0.00043835,120]
[392224618,1761267046845,-500.0,0.00043835,120]
[392224619,1761267046855,-500.0,0.00043835,120]
[392224620,1761267046863,-500.0,0.00043835,120]
[392224621,1761267046875,-500.0,0.00043835,120]
[392224622,1761267046885,-500.0,0.00043835,120]
[392224623,1761267046894,-500.0,0.00043835,120]
[392224624,1761267046904,-500.0,0.00043835,120]
[392224625,1761267046914,-500.0,0.00043835,120]
[392224626,1761267046925,-500.0,0.00043835,120]
[392224627,1761267046936,-500.0,0.00043835,120]
[392224628,1761267046945,-500.0,0.00043835,120]
[392224629,1761267046957,-500.0,0.00043835,120]